fUST/lending_fUST_20250827
["ID","MTS","AMOUNT","RATE_DAILY","PERIOD"]
[381587319,1756290661745,-336.61420004,0.00022092,2]
[381587323,1756290661773,-480.0,0.00022092,2]
[381587327,1756290661803,-480.0,0.00022092,2]
[381587331,1756290661830,-480.0,0.00022092,2]
[381587335,1756290661857,-480.0,0.00022092,2]
[381587338,1756290661885,-480.0,0.00022092,2]
[381587360,1756290662080,-480.0,0.00022092,2]
[381587364,1756290662108,-480.0,0.00022092,2]
[381587368,1756290662135,-480.0,0.00022092,2]
[381587372,1756290662165,-480.0,0.00022092,2]
[381587376,1756290662192,-480.0,0.00022092,2]
[381587380,1756290662222,-563.56,0.00022092,2]
[381587384,1756290662254,-500.0,0.00022092,2]
[381587388,1756290662285,-480.0,0.00022092,2]
[381587391,1756290662314,-480.0,0.00022092,2]
[381587395,1756290662341,-480.0,0.00022092,2]
[381587411,1756290662496,-480.0,0.00022087,2]
[381587415,1756290662524,-480.0,0.00022092,2]
[381587419,1756290662551,-481.64,0.00022092,2]
[381587423,1756290662579,-480.0,0.00022092,2]
[381587427,1756290662607,-480.0,0.00022092,2]
[381587431,1756290662636,-503.06,0.00022092,2]
[381587435,1756290662664,-480.0,0.00022092,2]
[381587439,1756290662691,-480.0,0.00022092,2]
[381587443,1756290662718,-227.8241137,0.00022092,2]
[381587446,1756290662745,-480.0,0.00022092,2]
[381587474,1756290662995,-374.9617726,0.00022092,2]
[381587516,1756290663389,-105.0382274,0.00022092,2]
[381587520,1756290663419,-480.0,0.00022092,2]
[381587522,1756290663448,-480.0,0.00022092,2]
[381587523,1756290663478,-480.0,0.00022092,2]
[381587524,1756290663507,-480.0,0.00022092,2]
[381587525,1756290663538,-480.0,0.00022092,2]
[381587526,1756290663568,-480.0,0.00022092,2]
[381587527,1756290663597,-483.03,0.00022092,2]
[381587528,1756290663627,-480.0,0.00022092,2]
[381587529,1756290663659,-480.0,0.00022092,2]
[381587530,1756290663688,-480.0,0.00022092,2]
[381587540,1756290663885,-483.62242684,0.00022079,2]
[381587544,1756290663916,-480.0,0.00022092,2]
[381587548,1756290663944,-480.0,0.00022092,2]
[381587552,1756290663975,-480.0,0.00022092,2]
[381587556,1756290664004,-480.0,0.00022092,2]
[381587560,1756290664034,-480.0,0.00022092,2]
[381587564,1756290664065,-541.68,0.00022092,2]
[381587568,1756290664093,-480.0,0.00022092,2]
[381587572,1756290664122,-480.0,0.00022092,2]
[381587576,1756290664151,-480.0,0.00022092,2]
[381587592,1756290664300,-480.0,0.00022092,2]
[381587596,1756290664329,-582.76,0.00022092,2]
[381587600,1756290664357,-480.0,0.00022092,2]
[381587604,1756290664386,-480.0,0.00022092,2]
[381587608,1756290664417,-537.88,0.00022092,2]
[381587611,1756290664446,-729.94,0.00022092,2]
[381587616,1756290664477,-480.0,0.00022092,2]
[381587619,1756290664507,-480.0,0.00022092,2]
[381587623,1756290664535,-481.99552742,0.00022092,2]
[381587628,1756290664567,-54.85894516,0.00022092,2]
[381587640,1756290664688,-425.14105484,0.00022092,2]
[381587644,1756290664719,-480.0,0.00022092,2]
[381587648,1756290664749,-501.51,0.00022092,2]
[381587652,1756290664778,-480.0,0.00022092,2]
[381587656,1756290664808,-562.47,0.00022092,2]
[381587660,1756290664837,-480.0,0.00022092,2]
[381587664,1756290664866,-480.0,0.00022092,2]
[381587668,1756290664894,-480.0,0.00022092,2]
[381587672,1756290664925,-480.0,0.00022092,2]
[381587675,1756290664953,-480.0,0.00022092,2]
[381587854,1756290666769,-340.97200052,0.00022079,2]
[381587857,1756290666790,-139.02799948,0.00022079,2]
[381587859,1756290666800,-340.97200052,0.00022081,2]
[381587863,1756290666832,-139.02799948,0.00022081,2]
[381587865,1756290666842,-340.97200052,0.00022082,2]
[381587868,1756290666859,-139.02799948,0.00022082,2]
[381587870,1756290666870,-340.97200052,0.00022092,2]
[381587914,1756290667309,-228.99799948,0.00022092,2]
[381587917,1756290667326,-251.00200052,0.00022092,2]
[381587920,1756290667348,-228.99799948,0.00022092,2]
[381587922,1756290667358,-72.76989084,0.00022092,2]
[381590922,1756290700148,-394.10514542,0.00021085,2]
[381591366,1756290704466,-218.84464994,0.00021085,2]
[381591652,1756290707322,-53.05020464,0.00021085,2]
[381593452,1756290759729,1132.99458257,0.000199,2]
[381593544,1756290919329,-258.34864595,0.00020826,2]
[381593546,1756290926205,-4.39698905,0.00020826,2]
[381593547,1756290928929,1146.21076652,0.000199,2]
[381593555,1756290962424,-181.32697215,0.00020805,2]
[381593556,1756290966371,-141.98599685,0.00020805,2]
[381593574,1756291047983,-222.81793797,0.00021303,6]
[381593576,1756291051438,-317.7507465,0.00021303,6]
[381593577,1756291054039,-64.4633671,0.00021303,6]
[381593587,1756291104214,1138.98632779,0.000199,2]
[381593683,1756291176979,6581.81832312,0.0002001,2]
[381593684,1756291177003,3418.18167688,0.0002001,2]
[381593685,1756291199880,6581.82832312,0.0002001,2]
[381593686,1756291199901,3418.17167688,0.0002001,2]
[381593688,1756291233613,6420.0,0.0002001,2]
[381593692,1756291279471,161.83832312,0.000199,2]
[381593693,1756291279498,952.71336745,0.000199,2]
[381593694,1756291351976,160.0,0.0002,3]
[381593708,1756291455213,1091.32087476,0.000199,2]
[381593719,1756291573224,481.442381,0.00013699,2]
[381593720,1756291574196,-214.22012249,0.00020187,2]
[381593721,1756291575833,-152.0,0.00020187,2]
[381593722,1756291578156,-115.22225851,0.00020187,2]
[381593727,1756291629333,1093.31372019,0.000199,2]
[381593731,1756291694124,-179.20355683,0.00020706,2]
[381593732,1756291695886,-297.06877448,0.00020706,2]
[381593733,1756291699513,-263.39282472,0.00020706,2]
[381593735,1756291703608,-428.7276918,0.00020706,2]
[381593736,1756291707974,-158.63448031,0.00020706,2]
[381593737,1756291710367,-199.0,0.00020706,2]
[381593738,1756291716427,-190.89508705,0.00020705,2]
[381593740,1756291719594,-299.77979781,0.00020705,2]
[381593741,1756291721836,-9.32511514,0.00020705,2]
[381593742,1756291721857,-401.47900316,0.00020705,2]
[381593743,1756291723948,-98.52099684,0.00020705,2]
[381593744,1756291723968,-173.7874862,0.00020705,2]
[381593745,1756291725513,-286.63835153,0.00020705,2]
[381593746,1756291728409,-153.53529273,0.00020605,2]
[381593747,1756291730586,-182.8660195,0.00020605,2]
[381593748,1756291734728,-197.37240435,0.00020605,2]
[381593749,1756291739267,-306.2421192,0.00020605,2]
[381593750,1756291743894,-128.26190293,0.00020605,2]
[381593751,1756291743917,-52.86570008,0.00020704,2]
[381593752,1756291748029,-193.7578808,0.00020704,2]
[381593753,1756291750660,-53.37641912,0.00020704,2]
[381593754,1756291750683,-246.62358088,0.00020705,2]
[381593755,1756291754344,517.34,0.00020696,10]
[381593756,1756291756588,-160.0,0.00020705,2]
[381593757,1756291760586,-422.82178038,0.00020705,2]
[381593758,1756291764212,-300.0,0.00020705,2]
[381593759,1756291766257,-327.64092637,0.00020705,2]
[381593760,1756291767115,-217.5503815,0.00020705,2]
[381593761,1756291767806,431.11,0.00020696,10]
[381593762,1756291771141,-327.59498137,0.00020705,2]
[381593763,1756291773462,-179.53353421,0.00020705,2]
[381593764,1756291776484,-190.7112023,0.00020705,2]
[381593765,1756291779158,-195.80496745,0.00020705,2]
[381593766,1756291780389,359.26,0.00020696,10]
[381593767,1756291783755,-195.23349707,0.00020705,2]
[381593768,1756291788098,-304.76650293,0.00020705,2]
[381593769,1756291790334,-198.09380562,0.00020705,2]
[381593770,1756291792186,8100.44290103,0.0002,7]
[381593771,1756291792208,6381.2196566,0.0002,7]
[381593772,1756291792234,10000.01,0.0002,7]
[381593773,1756291792259,9142.32744237,0.0002,7]
[381593774,1756291792487,-176.74773164,0.00020705,2]
[381593775,1756291796553,-240.67666115,0.00020705,2]
[381593776,1756291799318,-258.28368038,0.00020705,2]
[381593777,1756291804140,857.68255763,0.000199,2]
[381593778,1756291804169,474.99244181,0.000199,2]
[381593779,1756291804493,-152.0,0.00020704,2]
[381593780,1756291807386,-182.44560753,0.00020696,10]
[381593781,1756291813740,-67.04439247,0.00020696,10]
[381593782,1756291813763,-121.67109236,0.00020704,2]
[381593783,1756291815409,-26.32890764,0.00020704,2]
[381593784,1756291815434,-300.0,0.00020704,2]
[381593785,1756291815455,-120.37475045,0.00020704,2]
[381593786,1756291817774,-207.91,0.00020696,10]
[381593787,1756291817797,-2.87406626,0.00020704,2]
[381593788,1756291819422,-175.54011199,0.00020704,2]
[381593789,1756291821600,-1.2110713,0.00020704,2]
[381593790,1756291821623,-253.49613241,0.00020704,2]
[381593791,1756291823274,-46.50386759,0.00020704,2]
[381593792,1756291823299,-131.973997,0.00020704,2]
[381593793,1756291830060,-248.508858,0.00020497,2]
[381593840,1756291831909,-213.34329981,0.00020497,2]
[381594155,1756291836525,-208.04358276,0.00020497,2]
[381594182,1756291837840,-417.83929948,0.00020497,2]
[381594184,1756291837849,-500.0,0.00020704,2]
[381594186,1756291837859,-205.50162326,0.00020704,2]
[381594188,1756291837870,-500.0,0.00020704,2]
[381594190,1756291837879,-500.0,0.00020704,2]
[381594192,1756291837889,-500.0,0.00020704,2]
[381594194,1756291837898,-500.0,0.00020704,2]
[381594196,1756291837907,-500.0,0.00020704,2]
[381594198,1756291837916,-500.0,0.00020704,2]
[381594200,1756291837926,-164.84902868,0.00020704,2]
[381594202,1756291837935,-500.0,0.00020704,2]
[381594203,1756291837944,-362.3632208,0.00020704,2]
[381594206,1756291838204,-137.6367792,0.00020704,2]
[381594207,1756291838213,-500.0,0.00020704,2]
[381594208,1756291838224,-500.0,0.00020704,2]
[381594209,1756291838234,-500.0,0.00020704,2]
[381594210,1756291838243,-500.0,0.00020704,2]
[381594211,1756291838252,-500.0,0.00020704,2]
[381594212,1756291838263,-500.0,0.00020704,2]
[381594213,1756291838272,-500.0,0.00020704,2]
[381594214,1756291838281,-500.0,0.00020704,2]
[381594215,1756291838290,-530.02160312,0.00020704,2]
[381594216,1756291838301,-500.0,0.00020704,2]
[381594217,1756291838311,-500.0,0.00020704,2]
[381594218,1756291838320,-500.0,0.00020704,2]
[381594219,1756291838329,-175.1496489,0.00020704,2]
[381594220,1756291838338,-500.0,0.00020704,2]
[381594221,1756291838347,-500.0,0.00020704,2]
[381594222,1756291838357,-500.0,0.00020704,2]
[381594223,1756291838366,-500.0,0.00020704,2]
[381594224,1756291838375,-500.0,0.00020704,2]
[381594225,1756291838385,-500.0,0.00020704,2]
[381594226,1756291838394,-500.0,0.00020704,2]
[381594227,1756291838403,-500.0,0.00020704,2]
[381594228,1756291838412,-489.40529147,0.00020704,2]
[381594229,1756291838422,-424.36693641,0.00020704,2]
[381594230,1756291838431,-500.0,0.00020704,2]
[381594231,1756291838440,-500.0,0.00020704,2]
[381594232,1756291838450,-500.0,0.00020704,2]
[381594233,1756291838459,-500.0,0.00020704,2]
[381594234,1756291838468,-613.92061476,0.00020704,2]
[381594235,1756291838477,-500.0,0.00020704,2]
[381594236,1756291838486,-500.0,0.00020704,2]
[381594237,1756291838496,-500.0,0.00020704,2]
[381594238,1756291838505,-500.0,0.00020704,2]
[381594239,1756291838514,-500.0,0.00020704,2]
[381594240,1756291838524,-474.6505479,0.00020704,2]
[381594241,1756291838533,-500.0,0.00020704,2]
[381594242,1756291838543,-500.0,0.00020704,2]
[381594243,1756291838552,-500.0,0.00020704,2]
[381594244,1756291838561,-500.0,0.00020704,2]
[381594245,1756291838570,-500.0,0.00020704,2]
[381594246,1756291838580,-500.0,0.00020704,2]
[381594247,1756291838590,-500.0,0.00020704,2]
[381594248,1756291838599,-500.0,0.00020704,2]
[381594249,1756291838609,-500.0,0.00020704,2]
[381594250,1756291838618,-500.0,0.00020704,2]
[381594251,1756291838628,-500.0,0.00020704,2]
[381594252,1756291838638,-500.0,0.00020704,2]
[381594253,1756291838647,-500.0,0.00020704,2]
[381594254,1756291838656,-477.04983049,0.00020704,2]
[381594255,1756291838665,-500.0,0.00020704,2]
[381594256,1756291838674,-500.0,0.00020704,2]
[381594257,1756291838684,-500.0,0.00020704,2]
[381594258,1756291838693,-186.1755348,0.00020704,2]
[381594259,1756291838702,-479.56284961,0.00020704,2]
[381594260,1756291838712,-278.22560779,0.00020704,2]
[381594261,1756291838721,-173.51036132,0.00020704,2]
[381594262,1756291838730,-500.0,0.00020704,2]
[381594263,1756291838740,-500.0,0.00020704,2]
[381594264,1756291838750,-500.0,0.00020704,2]
[381594265,1756291838759,-500.0,0.00020704,2]
[381594266,1756291838769,-500.0,0.00020704,2]
[381594267,1756291838778,-500.0,0.00020704,2]
[381594268,1756291838788,-500.0,0.00020704,2]
[381594269,1756291838797,-500.0,0.00020704,2]
[381594270,1756291838807,-500.0,0.00020704,2]
[381594271,1756291838816,-500.0,0.00020704,2]
[381594272,1756291838826,-500.0,0.00020704,2]
[381594273,1756291838835,-500.0,0.00020704,2]
[381594274,1756291838844,-500.0,0.00020704,2]
[381594275,1756291838855,-500.0,0.00020704,2]
[381594276,1756291838864,-500.0,0.00020704,2]
[381594277,1756291838874,-500.0,0.00020704,2]
[381594278,1756291838883,-500.0,0.00020704,2]
[381594279,1756291838893,-500.0,0.00020704,2]
[381594280,1756291838902,-500.0,0.00020704,2]
[381594281,1756291838911,-402.13003688,0.00020704,2]
[381594282,1756291838920,-500.0,0.00020704,2]
[381594283,1756291838930,-500.0,0.00020704,2]
[381594284,1756291838939,-500.0,0.00020704,2]
[381594285,1756291838948,-500.0,0.00020704,2]
[381594286,1756291838958,-168.026003,0.00020704,2]
[381594287,1756291838967,-1200.0,0.00020704,2]
[381594288,1756291838976,-46057.91676675,0.00020705,2]
[381594289,1756291838986,-500.0,0.00020705,2]
[381594290,1756291838995,-153.70785489,0.00020705,2]
[381594291,1756291839004,-8473.97267186,0.00020706,2]
[381594292,1756291839014,-500.0,0.000208,2]
[381594293,1756291839023,-500.0,0.000208,2]
[381594294,1756291839033,-500.0,0.000208,2]
[381594295,1756291839042,-203.6903084,0.00021327,2]
[381594296,1756291839052,-756.84276516,0.00021348,2]
[381594297,1756291839061,-500.0,0.00021348,2]
[381594298,1756291839070,-500.0,0.00021348,2]
[381594299,1756291839079,-250.0,0.00021355,2]
[381594300,1756291839089,-216.75386968,0.00021427,2]
[381594301,1756291839098,-156.06169756,0.00021489,2]
[381594302,1756291839108,-373.97820586,0.00021527,2]
[381594303,1756291839118,-157.21043459,0.00021581,2]
[381594304,1756291839127,-1332.67499928,0.00021627,2]
[381594305,1756291839136,-800.0,0.00021669,2]
[381594306,1756291839145,-921.2205066,0.00021702,2]
[381594307,1756291839154,-2123.88538028,0.0002178,2]
[381594308,1756291839163,-370000.0,0.00021785,2]
[381594309,1756291839172,-322.2842668,0.000219,2]
[381594310,1756291839182,-306.0,0.000219,2]
[381594311,1756291839191,-1787.15,0.00021907,3]
[381594312,1756291839200,-223.39,0.00021907,3]
[381594313,1756291839209,-670.22,0.00021907,3]
[381594314,1756291839219,-480.0,0.00021917,2]
[381594315,1756291839233,-480.0,0.00021917,2]
[381594316,1756291839242,-480.0,0.00021917,2]
[381594317,1756291839251,-480.0,0.00021917,2]
[381594318,1756291839260,-480.0,0.00021917,2]
[381594319,1756291839270,-480.0,0.00021917,2]
[381594320,1756291839279,-820.88,0.00021917,2]
[381594321,1756291839289,-480.0,0.00021917,2]
[381594322,1756291839300,-480.0,0.00021917,2]
[381594323,1756291839310,-480.0,0.00021917,2]
[381594324,1756291839319,-486.42,0.00021917,2]
[381594325,1756291839328,-480.0,0.00021917,2]
[381594326,1756291839337,-480.0,0.00021917,2]
[381594327,1756291839346,-480.0,0.00021917,2]
[381594328,1756291839355,-480.0,0.00021917,2]
[381594329,1756291839364,-480.0,0.00021917,2]
[381594330,1756291839375,-480.0,0.00021917,2]
[381594331,1756291839384,-480.0,0.00021917,2]
[381594332,1756291839393,-611.28681639,0.00021917,2]
[381594333,1756291839402,-480.0,0.00021917,2]
[381594334,1756291839411,-480.0,0.00021917,2]
[381594335,1756291839420,-480.0,0.00021917,2]
[381594336,1756291839430,-749.91,0.00021917,2]
[381594337,1756291839439,-480.0,0.00021917,2]
[381594338,1756291839448,-598.11,0.00021917,2]
[381594341,1756291839457,-480.0,0.00021917,2]
[381594343,1756291839467,-480.0,0.00021917,2]
[381594345,1756291839476,-480.0,0.00021917,2]
[381594347,1756291839485,-480.0,0.00021917,2]
[381594348,1756291839494,-480.0,0.00021917,2]
[381594349,1756291839503,-649.34,0.00021917,2]
[381594350,1756291839512,-480.0,0.00021917,2]
[381594351,1756291839522,-480.0,0.00021917,2]
[381594352,1756291839531,-939.49,0.00021917,2]
[381594353,1756291839540,-480.0,0.00021917,2]
[381594354,1756291839549,-723.98,0.00021917,2]
[381594355,1756291839559,-480.0,0.00021917,2]
[381594356,1756291839568,-480.0,0.00021917,2]
[381594357,1756291839578,-480.0,0.00021917,2]
[381594358,1756291839588,-755.78,0.00021917,2]
[381594359,1756291839599,-480.0,0.00021917,2]
[381594360,1756291839608,-173.65381616,0.00021917,2]
[381594361,1756291839618,-480.0,0.00021917,2]
[381594362,1756291839628,-480.0,0.00021917,2]
[381594363,1756291839637,-480.0,0.00021917,2]
[381594364,1756291839646,-480.0,0.00021917,2]
[381594365,1756291839656,-480.0,0.00021917,2]
[381594366,1756291839665,-687.81,0.00021917,2]
[381594367,1756291839675,-480.0,0.00021917,2]
[381594368,1756291839684,-480.0,0.00021917,2]
[381594369,1756291839693,-500.0,0.00021917,2]
[381594370,1756291839702,-480.0,0.00021917,2]
[381594371,1756291839711,-480.0,0.00021917,2]
[381594372,1756291839721,-480.0,0.00021917,2]
[381594373,1756291839730,-480.0,0.00021917,2]
[381594374,1756291839739,-538.35907122,0.00021917,2]
[381594375,1756291839748,-480.0,0.00021917,2]
[381594376,1756291839757,-480.0,0.00021917,2]
[381594377,1756291839766,-480.0,0.00021917,2]
[381594378,1756291839776,-480.0,0.00021917,2]
[381594379,1756291839785,-480.0,0.00021917,2]
[381594380,1756291839795,-480.0,0.00021917,2]
[381594381,1756291839804,-480.0,0.00021917,2]
[381594382,1756291839813,-480.0,0.00021917,2]
[381594383,1756291839822,-364.73147087,0.00021917,2]
[381594384,1756291839832,-480.0,0.00021917,2]
[381594385,1756291839841,-963.51,0.00021917,2]
[381594386,1756291839850,-480.0,0.00021917,2]
[381594387,1756291839859,-480.0,0.00021917,2]
[381594388,1756291839869,-480.0,0.00021917,2]
[381594389,1756291839878,-480.0,0.00021917,2]
[381594390,1756291839887,-480.0,0.00021917,2]
[381594391,1756291839896,-480.0,0.00021917,2]
[381594392,1756291839906,-480.0,0.00021917,2]
[381594393,1756291839916,-480.0,0.00021917,2]
[381594394,1756291839926,-1940.52,0.00021917,2]
[381594395,1756291839935,-676.83,0.00021917,2]
[381594396,1756291839944,-480.0,0.00021917,2]
[381594397,1756291839953,-480.0,0.00021917,2]
[381594398,1756291839963,-480.0,0.00021917,2]
[381594399,1756291839972,-480.0,0.00021917,2]
[381594400,1756291839981,-480.0,0.00021917,2]
[381594401,1756291839990,-480.0,0.00021917,2]
[381594402,1756291839999,-480.0,0.00021917,2]
[381594403,1756291840008,-480.0,0.00021917,2]
[381594404,1756291840017,-480.0,0.00021917,2]
[381594405,1756291840026,-480.0,0.00021917,2]
[381594406,1756291840036,-480.0,0.00021917,2]
[381594407,1756291840045,-480.0,0.00021917,2]
[381594408,1756291840055,-480.0,0.00021917,2]
[381594409,1756291840064,-480.0,0.00021917,2]
[381594410,1756291840073,-1126.54,0.00021917,2]
[381594411,1756291840083,-480.0,0.00021917,2]
[381594412,1756291840093,-480.0,0.00021917,2]
[381594413,1756291840102,-480.0,0.00021917,2]
[381594414,1756291840111,-480.0,0.00021917,2]
[381594415,1756291840120,-480.0,0.00021917,2]
[381594417,1756291840130,-480.0,0.00021917,2]
[381594419,1756291840139,-480.0,0.00021917,2]
[381594421,1756291840148,-480.0,0.00021917,2]
[381594423,1756291840157,-480.0,0.00021917,2]
[381594424,1756291840166,-480.0,0.00021917,2]
[381594425,1756291840175,-480.0,0.00021917,2]
[381594426,1756291840184,-574.18,0.00021917,2]
[381594427,1756291840194,-935.07,0.00021917,2]
[381594428,1756291840205,-480.0,0.00021917,2]
[381594429,1756291840214,-480.0,0.00021917,2]
[381594430,1756291840229,-480.0,0.00021917,2]
[381594431,1756291840239,-480.0,0.00021917,2]
[381594432,1756291840248,-1570.68,0.00021917,2]
[381594433,1756291840257,-598.29,0.00021917,2]
[381594434,1756291840267,-482.96782084,0.00021917,2]
[381594435,1756291840276,-480.0,0.00021917,2]
[381594436,1756291840285,-480.0,0.00021917,2]
[381594437,1756291840295,-480.0,0.00021917,2]
[381594438,1756291840304,-628.18,0.00021917,2]
[381594439,1756291840314,-480.0,0.00021917,2]
[381594440,1756291840323,-480.0,0.00021917,2]
[381594441,1756291840333,-164.20752837,0.00021917,2]
[381594442,1756291840342,-480.0,0.00021917,2]
[381594443,1756291840351,-480.0,0.00021917,2]
[381594444,1756291840360,-954.81,0.00021917,2]
[381594445,1756291840370,-480.0,0.00021917,2]
[381594447,1756291840379,-480.0,0.00021917,2]
[381594449,1756291840390,-480.0,0.00021917,2]
[381594451,1756291840399,-480.0,0.00021917,2]
[381594453,1756291840408,-480.0,0.00021917,2]
[381594455,1756291840417,-656.23,0.00021917,2]
[381594456,1756291840427,-480.0,0.00021917,2]
[381594457,1756291840439,-480.0,0.00021917,2]
[381594458,1756291840451,-480.0,0.00021917,2]
[381594459,1756291840460,-480.0,0.00021917,2]
[381594460,1756291840469,-480.0,0.00021917,2]
[381594461,1756291840479,-480.0,0.00021917,2]
[381594462,1756291840488,-480.0,0.00021917,2]
[381594463,1756291840497,-480.0,0.00021917,2]
[381594464,1756291840507,-480.0,0.00021917,2]
[381594465,1756291840516,-480.0,0.00021917,2]
[381594466,1756291840526,-480.0,0.00021917,2]
[381594467,1756291840535,-2173.07,0.00021917,2]
[381594468,1756291840544,-480.0,0.00021917,2]
[381594469,1756291840555,-591.63,0.00021917,2]
[381594470,1756291840565,-3910.05,0.00021917,2]
[381594471,1756291840574,-480.0,0.00021917,2]
[381594472,1756291840583,-480.0,0.00021917,2]
[381594473,1756291840593,-3445.63,0.00021917,2]
[381594474,1756291840603,-480.0,0.00021917,2]
[381594475,1756291840618,-480.0,0.00021917,2]
[381594476,1756291840627,-480.0,0.00021917,2]
[381594477,1756291840637,-2044.52,0.00021917,2]
[381594478,1756291840646,-480.0,0.00021917,2]
[381594479,1756291840655,-480.0,0.00021917,2]
[381594480,1756291840664,-610.11,0.00021917,2]
[381594481,1756291840674,-480.0,0.00021917,2]
[381594482,1756291840683,-657.56,0.00021917,2]
[381594483,1756291840692,-480.0,0.00021917,2]
[381594484,1756291840701,-480.0,0.00021917,2]
[381594485,1756291840711,-480.0,0.00021917,2]
[381594486,1756291840720,-480.0,0.00021917,2]
[381594487,1756291840736,-480.0,0.00021917,2]
[381594488,1756291840746,-480.0,0.00021917,2]
[381594489,1756291840755,-480.0,0.00021917,2]
[381594490,1756291840765,-480.0,0.00021917,2]
[381594491,1756291840775,-480.0,0.00021917,2]
[381594492,1756291840784,-390.67044967,0.00021917,2]
[381594493,1756291840794,-480.0,0.00021917,2]
[381594494,1756291840803,-480.0,0.00021917,2]
[381594495,1756291840813,-480.0,0.00021917,2]
[381594496,1756291840822,-480.0,0.00021917,2]
[381594497,1756291840832,-480.0,0.00021917,2]
[381594498,1756291840842,-480.0,0.00021917,2]
[381594499,1756291840851,-480.0,0.00021917,2]
[381594500,1756291840861,-480.0,0.00021917,2]
[381594501,1756291840871,-480.0,0.00021917,2]
[381594502,1756291840880,-480.0,0.00021917,2]
[381594503,1756291840889,-875.6,0.00021917,2]
[381594504,1756291840900,-480.0,0.00021917,2]
[381594505,1756291841103,-480.0,0.00021917,2]
[381594506,1756291841113,-480.0,0.00021917,2]
[381594507,1756291841122,-480.0,0.00021917,2]
[381594508,1756291841132,-713.78,0.00021917,2]
[381594509,1756291841142,-967.18,0.00021917,2]
[381594510,1756291841151,-532.32,0.00021917,2]
[381594511,1756291841161,-480.0,0.00021917,2]
[381594512,1756291841170,-480.0,0.00021917,2]
[381594513,1756291841180,-480.0,0.00021917,2]
[381594514,1756291841190,-480.0,0.00021917,2]
[381594515,1756291841199,-480.98182289,0.00021917,2]
[381594516,1756291841208,-480.0,0.00021917,2]
[381594517,1756291841218,-480.0,0.00021917,2]
[381594518,1756291841231,-480.0,0.00021917,2]
[381594519,1756291841241,-1148.21,0.00021917,2]
[381594520,1756291841251,-480.0,0.00021917,2]
[381594521,1756291841263,-480.0,0.00021917,2]
[381594522,1756291841273,-480.0,0.00021917,2]
[381594523,1756291841282,-480.0,0.00021917,2]
[381594524,1756291841292,-1043.25,0.00021917,2]
[381594525,1756291841302,-480.0,0.00021917,2]
[381594526,1756291841311,-480.0,0.00021917,2]
[381594527,1756291841320,-480.0,0.00021917,2]
[381594528,1756291841330,-480.0,0.00021917,2]
[381594529,1756291841339,-480.0,0.00021917,2]
[381594530,1756291841348,-480.0,0.00021917,2]
[381594531,1756291841359,-480.0,0.00021917,2]
[381594532,1756291841368,-691.87,0.00021917,2]
[381594533,1756291841377,-1283.65,0.00021917,2]
[381594534,1756291841387,-1656.46,0.00021917,2]
[381594535,1756291841395,-480.0,0.00021917,2]
[381594536,1756291841404,-2217.43,0.00021917,2]
[381594537,1756291841414,-480.0,0.00021917,2]
[381594538,1756291841423,-449.11489423,0.00021917,2]